[Event "Botvinnik Cup 2018"]
[Site "Moscow"]
[Date "2018.08.11"]
[Round "4"]
[White "Komliakov, Viktor"]
[Black "Ahmadzada, Ahmad"]
[Result "0-1"]
[ECO "C00"]
[WhiteElo "2366"]
[BlackElo "2342"]
[Annotator "NA"]
[PlyCount "88"]
[EventDate "2018.08.10"]
[EventCountry "RUS"]
[SourceTitle "playchess.com"]
[Source "ChessBase"]
[SourceQuality "1"]
[TimeControl "5400+30"]

1. e4 {[%emt 0:00:00]} e6 {[%emt 0:01:34]} 2. d3 {[%emt 0:00:11]} d5 {[%emt 0:00:06]} 3. Nd2 {[%emt 0:00:05]} c5 {[%emt 0:00:17]} 4. Ngf3 {[%emt 0:00:11]} Nc6 {[%emt 0:00:07]} 5. g3 {[%emt 0:00:07]} g6 {[%emt 0:00:04]} 6. Bg2 {[%emt 0:00:43]} Bg7 {[%emt 0:00:08]} 7. O-O {[%emt 0:00:08]} Nge7 {[%emt 0:00:11]} 8. Re1 {[%emt 0:00:23]} b6 {[%emt 0:00:15]} 9. c3 {[%emt 0:12:57]} a5 {[%emt 0:00:51]} 10. e5 {[%emt 0:02:41]} Qc7 {[%emt 0:00:44]} 11. Qe2 {[%emt 0:01:58]} h6 {[%emt 0:00:30]} 12. h4 {[%emt 0:03:05]} g5 {[%emt 0:00:06]} 13. hxg5 {[%emt 0:03:10]} hxg5 {[%emt 0:00:03]} 14. Nxg5 {[%emt 0:02:24]} Qxe5 {[%emt 0:00:35]} 15. Nde4 {[%emt 0:17:51]} dxe4 {[%emt 0:01:16]} 16. Bf4 {[%emt 0:00:33]} Qf6 {[%emt 0:02:44]} 17. Nxe4 {[%emt 0:00:27]} Qg6 {[%emt 0:00:50]} 18. Nd6+ {[%emt 0:06:08]} Kf8 {[%emt 0:00:14]} 19. Nc4 {[%emt 0:03:09]} Qh7 {[%emt 0:02:08]} 20. Nxb6 {[%emt 0:00:35]} Bb7 {[%emt 0:01:37]} 21. Nxa8 {[%emt 0:09:34]} Nd4 {[%emt 0:03:05]} 22. Bxb7 {[%emt 0:00:32]} Nxe2+ {[%emt 0:00:04]} 23. Rxe2 {[%emt 0:00:02]} Nd5 {[%emt 0:01:49]} 24. Bxd5 {[%emt 0:09:39]} Qh2+ {[%emt 0:00:04]} 25. Kf1 {[%emt 0:00:03]} exd5 {[%emt 0:00:11]} 26. Bd6+ {[%emt 0:00:03]} Kg8 {[%emt 0:00:10]} 27. Re8+ {[%emt 0:00:10]} Kh7 {[%emt 0:00:07]} 28. Rxh8+ {[%emt 0:00:02]} Kxh8 {[%emt 0:00:20]} 29. Re1 {[%emt 0:01:04]} Qh1+ {[%emt 0:02:05]} 30. Ke2 {[%emt 0:02:10]} Qh6 {[%emt 0:00:08]} 31. Bf4 {[%emt 0:00:31]} Qc6 {[%emt 0:00:16]} 32. Nc7 {[%emt 0:00:07]} Qb7 {[%emt 0:00:05]} 33. Kf1 {[%emt 0:05:44]} Qxb2 {[%emt 0:00:54]} 34. Nxd5 {[%emt 0:03:16]} Qxa2 {[%emt 0:00:11]} 35. c4 {[%emt 0:01:23]} Bd4 {[%emt 0:01:00]} 36. Re2 {[%emt 0:05:51]} Qb1+ {[%emt 0:00:08]} 37. Kg2 {[%emt 0:00:59]} Qxd3 {[%emt 0:00:31]} 38. Re8+ {[%emt 0:03:05]} Kg7 {[%emt 0:00:18]} 39. Ne3 {[%emt 0:00:49]} a4 {[%emt 0:01:01]} 40. g4 {[%emt 0:01:27]} Bxe3 {[%emt 0:00:06]} 41. Bxe3 {[%emt 0:00:09]} Qxc4 {[%emt 0:00:18]} 42. Kg3 {[%emt 0:00:12]} a3 {[%emt 0:00:09]} 43. Rc8 {[%emt 0:01:58]} a2 {[%emt 0:00:09]} 44. Bxc5 {[%emt 0:03:09]} Qd3+ {[%emt 0:00:11]} 0-1

[Event "Botvinnik Cup 2018"]
[Site "Moscow"]
[Date "2018.08.11"]
[Round "4"]
[White "Komliakov, Viktor"]
[Black "Atakishiyev, Elmar"]
[Result "1-0"]
[ECO "C00"]
[WhiteElo "2366"]
[BlackElo "2198"]
[Annotator "NA"]
[PlyCount "87"]
[EventDate "2018.08.10"]
[EventCountry "RUS"]
[SourceTitle "playchess.com"]
[Source "ChessBase"]
[SourceQuality "1"]
[TimeControl "5400+30"]

1. e4 {[%emt 0:00:00]} e6 {[%emt 0:02:20]} 2. f4 {[%emt 0:00:05]} d5 {[%emt 0:00:22]} 3. e5 {[%emt 0:00:05]} c5 {[%emt 0:00:04]} 4. Nf3 {[%emt 0:01:23]} Nc6 {[%emt 0:00:06]} 5. c3 {[%emt 0:00:10]} a6 {[%emt 0:00:22]} 6. Na3 {[%emt 0:00:58]} b5 {[%emt 0:00:25]} 7. d4 {[%emt 0:09:33]} Qb6 {[%emt 0:01:57]} 8. Nc2 {[%emt 0:01:11]} a5 {[%emt 0:02:20]} 9. a3 {[%emt 0:06:59]} Ba6 {[%emt 0:02:34]} 10. dxc5 {[%emt 0:06:01]} Bxc5 {[%emt 0:01:22]} 11. b4 {[%emt 0:00:23]} Bf2+ {[%emt 0:10:05]} 12. Ke2 {[%emt 0:00:21]} Qa7 {[%emt 0:02:53]} 13. Nfd4 {[%emt 0:06:04]} Bxd4 {[%emt 0:02:07]} 14. cxd4 {[%emt 0:02:02]} Nge7 {[%emt 0:00:17]} 15. Be3 {[%emt 0:01:38]} Rc8 {[%emt 0:04:32]} 16. Kf3 {[%emt 0:10:45]} Nb8 {[%emt 0:01:19]} 17. Bd3 {[%emt 0:01:44]} Nd7 {[%emt 0:01:02]} 18. bxa5 {[%emt 0:10:32]} Qb7 {[%emt 0:05:05]} 19. Nb4 {[%emt 0:01:37]} Nc6 {[%emt 0:01:21]} 20. Nxa6 {[%emt 0:04:32]} Qxa6 {[%emt 0:00:20]} 21. a4 {[%emt 0:00:05]} Nxa5 {[%emt 0:01:15]} 22. Bxb5 {[%emt 0:01:51]} Qa7 {[%emt 0:00:21]} 23. Qd2 {[%emt 0:13:30]} O-O {[%emt 0:09:02]} 24. Qd3 {[%emt 0:02:01]} Nc4 {[%emt 0:01:13]} 25. Rhc1 {[%emt 0:00:58]} Na5 {[%emt 0:11:23]} 26. Kg3 {[%emt 0:00:49]} Nb6 {[%emt 0:00:51]} 27. Bd2 {[%emt 0:00:35]} Nbc4 {[%emt 0:02:40]} 28. Bb4 {[%emt 0:01:01]} Rfd8 {[%emt 0:00:38]} 29. Rab1 {[%emt 0:02:06]} h6 {[%emt 0:00:53]} 30. h3 {[%emt 0:01:17]} Rc7 {[%emt 0:06:54]} 31. Rc3 {[%emt 0:01:16]} Rdc8 {[%emt 0:01:12]} 32. Kh2 {[%emt 0:00:31]} Kh8 {[%emt 0:02:46]} 33. Bc5 {[%emt 0:01:54]} Rxc5 {[%emt 0:00:14]} 34. dxc5 {[%emt 0:00:04]} Qxc5 {[%emt 0:00:03]} 35. Rcc1 {[%emt 0:00:49]} Qf2 {[%emt 0:01:25]} 36. Rf1 {[%emt 0:00:33]} Qa2 {[%emt 0:01:04]} 37. Rbc1 {[%emt 0:02:32]} Qb2 {[%emt 0:02:44]} 38. Qc3 {[%emt 0:00:40]} Qe2 {[%emt 0:01:52]} 39. Rf3 {[%emt 0:02:59]} Rb8 {[%emt 0:01:16]} 40. Qxa5 {[%emt 0:02:41]} Qxf3 {[%emt 0:00:27]} 41. Rxc4 {[%emt 0:00:10]} Qe3 {[%emt 0:00:17]} 42. Qc3 {[%emt 0:00:10]} Qf2 {[%emt 0:00:05]} 43. Qd4 {[%emt 0:00:27]} Qe1 {[%emt 0:00:31]} 44. Rc7 {[%emt 0:00:23]} 1-0

[Event "Botvinnik Cup 2018"]
[Site "Moscow"]
[Date "2018.08.11"]
[Round "4"]
[White "Egin, Vladimir"]
[Black "Degenbaev, Aziz"]
[Result "0-1"]
[ECO "B52"]
[WhiteElo "2317"]
[BlackElo "1605"]
[Annotator "NA"]
[PlyCount "84"]
[EventDate "2018.08.10"]
[EventCountry "RUS"]
[SourceTitle "playchess.com"]
[Source "ChessBase"]
[SourceQuality "1"]
[TimeControl "5400+30"]

1. e4 {[%emt 0:00:00]} c5 {[%emt 0:00:00]} 2. Nf3 {[%emt 0:00:00]} d6 {[%emt 0:00:00]} 3. Bb5+ {[%emt 0:00:00]} Bd7 {[%emt 0:00:00]} 4. Bxd7+ {[%emt 0:00:00]} Nxd7 {[%emt 0:00:30]} 5. O-O {[%emt 0:00:00]} e6 {[%emt 0:01:37]} 6. b3 {[%emt 0:01:37]} Ngf6 {[%emt 0:02:38]} 7. Qe2 {[%emt 0:00:09]} Be7 {[%emt 0:06:55]} 8. Bb2 {[%emt 0:00:18]} O-O {[%emt 0:05:36]} 9. c4 {[%emt 0:00:04]} Rc8 {[%emt 0:07:40]} 10. d4 {[%emt 0:00:17]} cxd4 {[%emt 0:01:31]} 11. Nxd4 {[%emt 0:00:13]} Nc5 {[%emt 0:06:42]} 12. Nc3 {[%emt 0:05:39]} e5 {[%emt 0:16:03]} 13. Nf5 {[%emt 0:01:13]} Ne6 {[%emt 0:02:15]} 14. Rad1 {[%emt 0:01:24]} g6 {[%emt 0:06:59]} 15. Nxe7+ {[%emt 0:02:19]} Qxe7 {[%emt 0:00:01]} 16. Nb5 {[%emt 0:00:17]} Rfd8 {[%emt 0:02:53]} 17. Ba3 {[%emt 0:05:28]} Ne8 {[%emt 0:03:36]} 18. Nxa7 {[%emt 0:00:45]} Rc7 {[%emt 0:05:30]} 19. Nb5 {[%emt 0:00:11]} Rcd7 {[%emt 0:00:34]} 20. g3 {[%emt 0:00:21]} f5 {[%emt 0:09:13]} 21. exf5 {[%emt 0:17:18]} gxf5 {[%emt 0:00:19]} 22. Qh5 {[%emt 0:00:46]} f4 {[%emt 0:03:49]} 23. Rfe1 {[%emt 0:04:08]} Qf6 {[%emt 0:01:41]} 24. Nc3 {[%emt 0:01:19]} N8g7 {[%emt 0:01:56]} 25. Qg4 {[%emt 0:00:52]} h5 {[%emt 0:02:23]} 26. Ne4 {[%emt 0:03:14]} Qf7 {[%emt 0:02:43]} 27. Qh4 {[%emt 0:02:31]} Nf5 {[%emt 0:02:46]} 28. Qf6 {[%emt 0:02:57]} Ned4 {[%emt 0:02:38]} 29. Bb2 {[%emt 0:03:21]} Nf3+ {[%emt 0:01:06]} 30. Kh1 {[%emt 0:00:10]} Nxe1 {[%emt 0:00:25]} 31. Rxe1 {[%emt 0:00:03]} Rf8 {[%emt 0:01:04]} 32. Qg5+ {[%emt 0:00:36]} Ng7 {[%emt 0:00:12]} 33. Kg1 {[%emt 0:02:17]} fxg3 {[%emt 0:01:03]} 34. hxg3 {[%emt 0:00:22]} Kh7 {[%emt 0:01:47]} 35. Qd2 {[%emt 0:03:29]} Ne6 {[%emt 0:00:43]} 36. Qd3 {[%emt 0:04:54]} Kg8 {[%emt 0:01:06]} 37. Rd1 {[%emt 0:00:21]} Nc5 {[%emt 0:01:34]} 38. Nxc5 {[%emt 0:00:52]} Qxf2+ {[%emt 0:00:11]} 39. Kh1 {[%emt 0:00:41]} Qxc5 {[%emt 0:00:01]} 40. Qg6+ {[%emt 0:00:09]} Rg7 {[%emt 0:00:11]} 41. Qe6+ {[%emt 0:06:58]} Kh7 {[%emt 0:01:09]} 42. Qh3 {[%emt 0:00:24]} Qf2 {[%emt 0:00:23]} 0-1

[Event "Botvinnik Cup 2018"]
[Site "Moscow"]
[Date "2018.08.11"]
[Round "4"]
[White "Egin, Vladimir"]
[Black "Sezdbekova, Aizhan"]
[Result "1-0"]
[ECO "C46"]
[WhiteElo "2317"]
[BlackElo "1226"]
[Annotator "NA"]
[PlyCount "81"]
[EventDate "2018.08.10"]
[EventCountry "RUS"]
[SourceTitle "playchess.com"]
[Source "ChessBase"]
[SourceQuality "1"]
[TimeControl "5400+30"]

1. e4 {[%emt 0:00:00]} e5 {[%emt 0:00:00]} 2. Nf3 {[%emt 0:00:00]} Nc6 {[%emt 0:00:18]} 3. Nc3 {[%emt 0:00:00]} Bc5 {[%emt 0:00:50]} 4. Nxe5 {[%emt 0:00:06]} Bxf2+ {[%emt 0:03:13]} 5. Kxf2 {[%emt 0:01:02]} Nxe5 {[%emt 0:00:19]} 6. d4 {[%emt 0:00:02]} Ng6 {[%emt 0:02:04]} 7. Be3 {[%emt 0:00:29]} d6 {[%emt 0:01:03]} 8. Be2 {[%emt 0:00:27]} Nf6 {[%emt 0:06:11]} 9. Rf1 {[%emt 0:02:25]} O-O {[%emt 0:02:26]} 10. Kg1 {[%emt 0:05:18]} h6 {[%emt 0:01:36]} 11. h3 {[%emt 0:07:59]} Be6 {[%emt 0:05:33]} 12. Bd3 {[%emt 0:01:25]} Nh7 {[%emt 0:23:14]} 13. Qe1 {[%emt 0:01:53]} Qd7 {[%emt 0:00:59]} 14. Qg3 {[%emt 0:05:07]} Qe7 {[%emt 0:21:11]} 15. Rae1 {[%emt 0:01:49]} Nf6 {[%emt 0:04:49]} 16. Qf2 {[%emt 0:16:02]} Nd7 {[%emt 0:02:48]} 17. d5 {[%emt 0:00:27]} Bxh3 {[%emt 0:00:33]} 18. gxh3 {[%emt 0:00:05]} Nde5 {[%emt 0:00:51]} 19. Qg3 {[%emt 0:04:35]} Kh8 {[%emt 0:00:29]} 20. Ne2 {[%emt 0:02:39]} Rac8 {[%emt 0:01:32]} 21. Nd4 {[%emt 0:08:07]} Qd7 {[%emt 0:01:49]} 22. Nf5 {[%emt 0:02:19]} Kh7 {[%emt 0:01:00]} 23. Bd4 {[%emt 0:09:47]} Rce8 {[%emt 0:08:04]} 24. h4 {[%emt 0:08:34]} f6 {[%emt 0:02:27]} 25. Be2 {[%emt 0:01:48]} Rd8 {[%emt 0:02:19]} 26. Kh2 {[%emt 0:06:11]} c5 {[%emt 0:00:11]} 27. dxc6 bxc6 {[%emt 0:00:11]} 28. Rg1 {[%emt 0:01:58]} Rg8 {[%emt 0:00:15]} 29. h5 {[%emt 0:05:32]} Nf8 {[%emt 0:00:25]} 30. Bxe5 {[%emt 0:01:18]} fxe5 {[%emt 0:00:17]} 31. Bc4 d5 32. Bd3 {[%emt 0:00:42]} d4 {[%emt 0:01:02]} 33. Bc4 Ne6 34. Qg6+ {[%emt 0:01:30]} Kh8 {[%emt 0:00:28]} 35. Bxe6 {[%emt 0:00:11]} Qc7 {[%emt 0:00:00]} 36. Bxg8 Rxg8 {[%emt 0:00:09]} 37. Nxh6 {[%emt 0:00:16]} Rf8 {[%emt 0:00:19]} 38. Nf5 {[%emt 0:01:15]} Rg8 {[%emt 0:00:09]} 39. h6 Qd8 {[%emt 0:00:14]} 40. hxg7+ {[%emt 0:00:34]} Rxg7 41. Qxg7# 1-0

[Event "Botvinnik Cup 2018"]
[Site "Moscow"]
[Date "2018.08.11"]
[Round "4"]
[White "Skatchkov, Valery"]
[Black "Paichadze, Luka"]
[Result "1/2-1/2"]
[ECO "E10"]
[WhiteElo "2305"]
[BlackElo "2564"]
[Annotator "ChessBase"]
[PlyCount "148"]
[EventDate "2018.08.10"]
[EventCountry "RUS"]
[SourceTitle "playchess.com"]
[Source "ChessBase"]
[SourceQuality "1"]
[TimeControl "5400+30"]

1. d4 {[%emt 0:00:00]} Nf6 {[%emt 0:00:00]} 2. c4 {[%emt 0:00:00]} e6 {[%emt 0:00:26]} 3. Nf3 {[%emt 0:00:00]} Nc6 {[%emt 0:00:33]} 4. a3 {[%emt 0:00:00]} d5 {[%emt 0:00:27]} 5. Nc3 {[%emt 0:00:00]} g6 {[%emt 0:00:20]} 6. e3 {[%emt 0:10:02]} Bg7 {[%emt 0:00:06]} 7. Bd3 {[%emt 0:03:40]} O-O {[%emt 0:01:38]} 8. O-O {[%emt 0:01:14]} Ne7 {[%emt 0:00:38]} 9. b4 {[%emt 0:03:34]} c6 {[%emt 0:03:33]} 10. Bb2 {[%emt 0:00:33]} b6 {[%emt 0:03:08]} 11. Qe2 {[%emt 0:08:15]} Ba6 {[%emt 0:01:43]} 12. Rfd1 {[%emt 0:02:23]} dxc4 {[%emt 0:00:56]} 13. Bxc4 {[%emt 0:00:17]} Bxc4 {[%emt 0:00:06]} 14. Qxc4 {[%emt 0:00:16]} Qc8 {[%emt 0:01:01]} 15. Rac1 {[%emt 0:07:27]} Qb7 {[%emt 0:00:52]} 16. e4 {[%emt 0:01:53]} Rfd8 {[%emt 0:05:46]} 17. Ba1 {[%emt 0:02:38]} Rac8 {[%emt 0:04:16]} 18. e5 {[%emt 0:04:09]} Ne8 {[%emt 0:00:07]} 19. Ne4 {[%emt 0:00:09]} Nd5 {[%emt 0:03:11]} 20. Bb2 {[%emt 0:05:28]} h6 {[%emt 0:02:12]} 21. h4 {[%emt 0:01:46]} Ne7 {[%emt 0:00:45]} 22. Bc3 {[%emt 0:01:43]} Rd7 {[%emt 0:00:31]} 23. Rd2 {[%emt 0:04:08]} Rcd8 {[%emt 0:01:41]} 24. Rcd1 {[%emt 0:00:33]} Nd5 {[%emt 0:07:07]} 25. Bb2 {[%emt 0:00:47]} Ne7 {[%emt 0:20:20]} 26. Rc1 {[%emt 0:03:48]} h5 {[%emt 0:03:35]} 27. Rdc2 {[%emt 0:04:29]} Rc7 {[%emt 0:02:04]} 28. Ra1 {[%emt 0:04:19]} Nf5 {[%emt 0:04:26]} 29. Bc3 {[%emt 0:04:10]} Bf8 {[%emt 0:01:26]} 30. a4 {[%emt 0:01:48]} Rd5 {[%emt 0:00:52]} 31. Rb1 {[%emt 0:03:30]} Qc8 {[%emt 0:06:36]} 32. Bd2 {[%emt 0:08:02]} Qd7 {[%emt 0:06:25]} 33. Bc3 {[%emt 0:02:35]} Be7 {[%emt 0:05:42]} 34. g3 {[%emt 0:00:41]} c5 {[%emt 0:00:19]} 35. bxc5 {[%emt 0:01:14]} bxc5 {[%emt 0:02:17]} 36. dxc5 {[%emt 0:00:44]} Bxc5 {[%emt 0:00:10]} 37. Qe2 {[%emt 0:02:31]} Rc8 {[%emt 0:00:45]} 38. Bb4 {[%emt 0:01:00]} Bxb4 {[%emt 0:01:15]} 39. Rxb4 {[%emt 0:00:05]} Kg7 {[%emt 0:01:08]} 40. Neg5 {[%emt 0:02:00]} a5 {[%emt 0:03:01]} 41. Rbc4 {[%emt 0:03:55]} Rb8 {[%emt 0:00:19]} 42. Rb2 {[%emt 0:00:52]} Rd1+ {[%emt 0:00:45]} 43. Kh2 {[%emt 0:01:15]} Rxb2 {[%emt 0:01:15]} 44. Qxb2 {[%emt 0:00:06]} Nh6 {[%emt 0:00:48]} 45. Qe2 {[%emt 0:01:13]} Ng4+ {[%emt 0:01:36]} 46. Kg2 {[%emt 0:00:05]} Rd5 {[%emt 0:00:34]} 47. Rf4 {[%emt 0:00:32]} Nh6 {[%emt 0:00:01]} 48. Qc2 {[%emt 0:01:38]} Nf5 {[%emt 0:00:27]} 49. Rc4 {[%emt 0:00:42]} Ne7 {[%emt 0:01:45]} 50. Rf4 {[%emt 0:00:10]} Nf5 {[%emt 0:00:12]} 51. Rc4 {[%emt 0:00:04]} Ne7 {[%emt 0:00:06]} 52. Qc3 {[%emt 0:01:03]} Rd1 {[%emt 0:00:27]} 53. Kh2 {[%emt 0:01:45]} Qb7 {[%emt 0:02:28]} 54. Rd4 {[%emt 0:01:10]} Rxd4 {[%emt 0:01:51]} 55. Qxd4 {[%emt 0:00:13]} Nd5 {[%emt 0:00:54]} 56. Kg2 {[%emt 0:00:44]} Nec7 {[%emt 0:00:35]} 57. Qc4 {[%emt 0:00:31]} Qb2 {[%emt 0:01:47]} 58. Qc5 {[%emt 0:00:26]} Qe2 {[%emt 0:00:02]} 59. Qa7 {[%emt 0:00:14]} Qc2 {[%emt 0:00:59]} 60. Qd4 {[%emt 0:00:27]} Qc6 {[%emt 0:00:16]} 61. Kg1 {[%emt 0:00:28]} Qb6 {[%emt 0:00:11]} 62. Qc4 {[%emt 0:00:13]} Na6 {[%emt 0:00:49]} 63. Qc8 {[%emt 0:00:11]} Nc5 {[%emt 0:00:06]} 64. Qe8 {[%emt 0:00:17]} Qb1+ {[%emt 0:00:55]} 65. Kg2 {[%emt 0:00:26]} Qb7 {[%emt 0:00:04]} 66. Kg1 {[%emt 0:01:05]} Nc3 {[%emt 0:01:14]} 67. Qd8 {[%emt 0:00:15]} N3xa4 {[%emt 0:00:59]} 68. Qf6+ {[%emt 0:00:57]} Kg8 {[%emt 0:00:01]} 69. Qd8+ {[%emt 0:00:08]} Kg7 {[%emt 0:00:02]} 70. Qf6+ {[%emt 0:00:05]} Kg8 {[%emt 0:00:02]} 71. Qd8+ {[%emt 0:00:05]} Kg7 {[%emt 0:00:04]} 72. Nh7 {[%emt 0:02:13]} Kxh7 {[%emt 0:02:05]} 73. Ng5+ {[%emt 0:00:04]} Kg7 {[%emt 0:00:01]} 74. Qf6+ {[%emt 0:00:05]} Kg8 {[%emt 0:00:02]} 1/2-1/2

[Event "Botvinnik Cup 2018"]
[Site "Moscow"]
[Date "2018.08.11"]
[Round "4"]
[White "Babazada, Khazar"]
[Black "Komliakov, Viktor"]
[Result "1/2-1/2"]
[ECO "B07"]
[WhiteElo "2229"]
[BlackElo "2366"]
[Annotator "NA"]
[PlyCount "83"]
[EventDate "2018.08.10"]
[EventCountry "RUS"]
[SourceTitle "playchess.com"]
[Source "ChessBase"]
[SourceQuality "1"]
[TimeControl "5400+30"]

1. d4 {[%emt 0:02:08]} d6 {[%emt 0:00:07]} 2. e4 {[%emt 0:00:16]} Nf6 {[%emt 0:00:08]} 3. Nc3 {[%emt 0:00:03]} c6 {[%emt 0:00:34]} 4. Nf3 {[%emt 0:01:57]} Bg4 {[%emt 0:00:32]} 5. Be3 {[%emt 0:01:11]} e6 {[%emt 0:00:11]} 6. h3 {[%emt 0:02:06]} Bh5 {[%emt 0:01:24]} 7. Bd3 {[%emt 0:02:52]} d5 {[%emt 0:00:19]} 8. e5 {[%emt 0:01:29]} Nfd7 {[%emt 0:01:35]} 9. Ne2 {[%emt 0:01:28]} Bxf3 {[%emt 0:10:31]} 10. gxf3 {[%emt 0:00:01]} c5 {[%emt 0:01:23]} 11. c3 {[%emt 0:00:03]} Nc6 {[%emt 0:00:38]} 12. a3 {[%emt 0:00:47]} a5 {[%emt 0:11:54]} 13. h4 {[%emt 0:03:57]} h5 {[%emt 0:02:37]} 14. Qa4 {[%emt 0:07:00]} c4 {[%emt 0:03:14]} 15. Bb1 {[%emt 0:00:05]} Rb8 {[%emt 0:00:19]} 16. Qc2 {[%emt 0:00:41]} b5 {[%emt 0:00:34]} 17. Bg5 {[%emt 0:02:42]} Be7 {[%emt 0:00:20]} 18. Rg1 {[%emt 0:00:16]} g6 {[%emt 0:00:24]} 19. Qc1 {[%emt 0:06:51]} Bxg5 {[%emt 0:00:42]} 20. Rxg5 {[%emt 0:01:04]} Ne7 {[%emt 0:02:48]} 21. Bc2 {[%emt 0:00:41]} Qb6 {[%emt 0:00:48]} 22. Kf1 {[%emt 0:01:29]} Kd8 {[%emt 0:07:36]} 23. Kg2 {[%emt 0:00:59]} Kc7 {[%emt 0:00:48]} 24. Kh2 {[%emt 0:00:09]} Ra8 {[%emt 0:05:55]} 25. Nf4 {[%emt 0:01:18]} Qc6 {[%emt 0:01:40]} 26. Rg1 {[%emt 0:00:36]} Nb6 {[%emt 0:06:10]} 27. Nh3 {[%emt 0:00:24]} Ng8 {[%emt 0:04:03]} 28. Qf4 {[%emt 0:03:03]} Qd7 {[%emt 0:01:36]} 29. Ng5 {[%emt 0:01:45]} Nh6 {[%emt 0:00:41]} 30. Qf6 {[%emt 0:01:43]} Qd8 {[%emt 0:01:16]} 31. Qxf7+ {[%emt 0:00:51]} Nxf7 {[%emt 0:00:05]} 32. Nxe6+ {[%emt 0:00:03]} Kb7 {[%emt 0:00:48]} 33. Nxd8+ {[%emt 0:00:13]} Raxd8 {[%emt 0:00:49]} 34. Rae1 {[%emt 0:01:24]} Rdf8 {[%emt 0:01:13]} 35. Rxg6 {[%emt 0:01:07]} Nd8 {[%emt 0:00:28]} 36. e6 {[%emt 0:00:57]} Nc6 {[%emt 0:01:15]} 37. e7 {[%emt 0:05:20]} Re8 {[%emt 0:01:40]} 38. Ree6 {[%emt 0:00:18]} Rc8 {[%emt 0:03:22]} 39. Rg7 {[%emt 0:00:48]} Rce8 {[%emt 0:00:56]} 40. Rgg6 {[%emt 0:00:13]} Rc8 {[%emt 0:00:59]} 41. Rg7 {[%emt 0:00:03]} Rce8 {[%emt 0:00:04]} 42. Rgg6 {[%emt 0:00:50]} 1/2-1/2

[Event "Botvinnik Cup 2018"]
[Site "Moscow"]
[Date "2018.08.11"]
[Round "4"]
[White "Ceres, Dragos"]
[Black "Sevdimaliyev, Urfan"]
[Result "0-1"]
[ECO "B30"]
[WhiteElo "2211"]
[BlackElo "2388"]
[Annotator "NA"]
[PlyCount "58"]
[EventDate "2018.08.10"]
[EventCountry "RUS"]
[SourceTitle "playchess.com"]
[Source "ChessBase"]
[SourceQuality "1"]
[TimeControl "5400+30"]

1. e4 {[%emt 0:00:00]} c5 {[%emt 0:01:22]} 2. Nf3 {[%emt 0:00:00]} Nc6 {[%emt 0:00:28]} 3. Bb5 {[%emt 0:00:00]} d6 {[%emt 0:00:10]} 4. O-O {[%emt 0:00:00]} Bd7 {[%emt 0:00:02]} 5. Re1 {[%emt 0:00:12]} Nf6 {[%emt 0:00:48]} 6. c3 {[%emt 0:00:04]} a6 {[%emt 0:01:42]} 7. Bf1 {[%emt 0:00:06]} Bg4 {[%emt 0:00:03]} 8. d4 {[%emt 0:00:08]} cxd4 {[%emt 0:01:14]} 9. cxd4 {[%emt 0:00:12]} e5 {[%emt 0:02:37]} 10. d5 {[%emt 0:00:04]} Nd4 {[%emt 0:01:42]} 11. Be3 {[%emt 0:00:05]} Nxf3+ {[%emt 0:04:28]} 12. gxf3 {[%emt 0:00:07]} Bc8 {[%emt 0:01:11]} 13. Nd2 {[%emt 0:02:29]} Be7 {[%emt 0:00:48]} 14. Qb3 {[%emt 0:01:23]} O-O {[%emt 0:00:54]} 15. a4 {[%emt 0:01:10]} Nh5 {[%emt 0:02:08]} 16. Bb6 {[%emt 0:08:25]} Qe8 {[%emt 0:01:17]} 17. Bc7 {[%emt 0:01:27]} f5 {[%emt 0:03:57]} 18. exf5 {[%emt 0:00:15]} Rxf5 {[%emt 0:02:08]} 19. Ne4 {[%emt 0:00:43]} Qf7 {[%emt 0:01:35]} 20. Ra3 {[%emt 0:01:24]} Nf4 {[%emt 0:01:34]} 21. Ng3 {[%emt 0:01:28]} Rg5 {[%emt 0:01:21]} 22. Kh1 {[%emt 0:03:53]} h5 {[%emt 0:02:02]} 23. h4 {[%emt 0:04:50]} Rg6 {[%emt 0:01:25]} 24. Ne4 {[%emt 0:00:04]} Nh3 {[%emt 0:08:39]} 25. Bxh3 {[%emt 0:03:06]} Bxh3 {[%emt 0:00:16]} 26. Qe3 {[%emt 0:01:16]} Bg2+ {[%emt 0:04:26]} 27. Kh2 {[%emt 0:01:47]} Qf5 {[%emt 0:00:29]} 28. Ng3 {[%emt 0:00:37]} Qh3+ {[%emt 0:00:07]} 29. Kg1 {[%emt 0:00:03]} Bh1 {[%emt 0:01:03]} 0-1

[Event "Botvinnik Cup 2018"]
[Site "Moscow"]
[Date "2018.08.11"]
[Round "4"]
[White "Allahverdiyeva, Ayan"]
[Black "Komliakov, Viktor"]
[Result "0-1"]
[ECO "B06"]
[WhiteElo "2046"]
[BlackElo "2366"]
[Annotator "NA"]
[PlyCount "82"]
[EventDate "2018.08.10"]
[EventCountry "RUS"]
[SourceTitle "playchess.com"]
[Source "ChessBase"]
[SourceQuality "1"]
[TimeControl "5400+30"]

1. e4 {[%emt 0:01:05]} g6 {[%emt 0:00:10]} 2. d4 {[%emt 0:01:19]} Bg7 {[%emt 0:00:05]} 3. Nc3 {[%emt 0:00:03]} c6 {[%emt 0:00:03]} 4. Be3 {[%emt 0:01:16]} d5 {[%emt 0:00:22]} 5. f3 {[%emt 0:01:01]} Qb6 {[%emt 0:03:21]} 6. exd5 {[%emt 0:06:31]} Qxb2 {[%emt 0:00:51]} 7. Nge2 {[%emt 0:00:11]} Nf6 {[%emt 0:01:28]} 8. dxc6 {[%emt 0:05:34]} bxc6 {[%emt 0:02:14]} 9. Rb1 {[%emt 0:02:54]} Qa3 {[%emt 0:03:00]} 10. g3 {[%emt 0:04:47]} O-O {[%emt 0:05:33]} 11. Bg2 {[%emt 0:02:14]} Ba6 {[%emt 0:03:09]} 12. Qc1 {[%emt 0:01:40]} Qa5 {[%emt 0:10:34]} 13. Kf2 {[%emt 0:06:33]} Nbd7 {[%emt 0:02:02]} 14. Bh6 {[%emt 0:03:52]} e5 {[%emt 0:04:36]} 15. Be3 {[%emt 0:15:11]} Rfe8 {[%emt 0:02:45]} 16. Re1 {[%emt 0:03:37]} Bxe2 {[%emt 0:13:25]} 17. Nxe2 {[%emt 0:00:48]} Nd5 {[%emt 0:00:06]} 18. Bd2 {[%emt 0:01:39]} Qc7 {[%emt 0:04:11]} 19. c4 {[%emt 0:07:04]} N5b6 {[%emt 0:00:13]} 20. Ba5 {[%emt 0:12:23]} exd4 {[%emt 0:02:39]} 21. Nf4 {[%emt 0:02:30]} Nc5 {[%emt 0:00:33]} 22. Bf1 {[%emt 0:00:06]} Re5 {[%emt 0:06:21]} 23. Qa3 {[%emt 0:01:27]} Rxe1 {[%emt 0:04:41]} 24. Bxb6 {[%emt 0:01:26]} Qc8 {[%emt 0:02:23]} 25. Rxe1 {[%emt 0:05:15]} axb6 {[%emt 0:00:05]} 26. Qb4 {[%emt 0:00:23]} Rxa2+ {[%emt 0:03:00]} 27. Re2 {[%emt 0:00:46]} Rxe2+ {[%emt 0:00:56]} 28. Bxe2 {[%emt 0:00:05]} Qc7 {[%emt 0:00:50]} 29. Nd3 {[%emt 0:00:55]} Bf8 {[%emt 0:02:09]} 30. Qb2 {[%emt 0:00:15]} Ne6 {[%emt 0:01:06]} 31. Qc1 {[%emt 0:03:10]} Qa7 {[%emt 0:03:03]} 32. Qb1 {[%emt 0:01:02]} Qa5 {[%emt 0:01:58]} 33. Qb2 {[%emt 0:01:29]} b5 {[%emt 0:04:06]} 34. cxb5 {[%emt 0:02:32]} cxb5 {[%emt 0:00:21]} 35. f4 {[%emt 0:01:18]} b4 {[%emt 0:00:20]} 36. Bg4 {[%emt 0:00:50]} Qa3 {[%emt 0:01:32]} 37. Qe2 {[%emt 0:02:35]} Nc5 {[%emt 0:01:18]} 38. Nxc5 {[%emt 0:00:56]} Bxc5 {[%emt 0:00:03]} 39. Qe8+ {[%emt 0:01:01]} Bf8 {[%emt 0:00:02]} 40. Be2 {[%emt 0:00:14]} d3 {[%emt 0:01:14]} 41. Qe3 {[%emt 0:00:08]} dxe2 {[%emt 0:00:10]} 0-1